Cogmind - Beta 15 @@@ ROGUE MODE // 2025.07.27 @ 02:20:30 Player: COGMINDER69 Result: Destroyed by Y-45 Defender with Heavy Assault Rifle Performance ------------- Evolutions (0) 0 Regions Visited (2) 400 Robots Destroyed (21) 105 Value Destroyed (456) 456 Prototype IDs (1) 20 Alien Tech Used (0) 0 Bonus (0) 0 TOTAL SCORE: 981 Bonus ------- None Cogmind --------- Core Integrity 0/250 Matter 193/450 Energy 100/100 System Corruption 3% Temperature Cool (9) Movement Walking (120) Location -10/Mines Parts ------- > --- POWER (1) -------- (None) > --- PROPULSION (2) --- Aluminum Leg Aluminum Leg > --- UTILITY (2) ------ Medium Storage Unit Large Matter Pod > --- WEAPON (2) ------- Light Assault Rifle Hammer > --- INVENTORY (10) --- Aluminum Leg Flight Unit Flight Unit Flight Unit Structural Scanner Hacking Suite Grenade Launcher Peak State ------------ > --- POWER ------------ Light Ion Engine > --- PROPULSION ------- Aluminum Leg Aluminum Leg > --- UTILITY ---------- Medium Storage Unit Experimental Sensor Array > --- WEAPON ----------- Assault Rifle Assault Rifle > --- INVENTORY -------- Aluminum Leg Aluminum Leg Flight Unit Flight Unit Flight Unit Structural Scanner Hacking Suite Light Assault Rifle Grenade Launcher Hammer [Rating: 16] Favorites ----------- Power Light Nuclear Core Engine Light Ion Engine Power Core Light Nuclear Core Propulsion Aluminum Leg Treads Light Treads Leg Aluminum Leg Utility Medium Storage Unit Device Terrain Scanner Storage Medium Storage Unit Weapon Assault Rifle Ballistic Gun Assault Rifle Launcher Grenade Launcher Impact Weapon Hammer Build | -11 -10 -10 ------- Run | Yrd Mat Min Slots Evolved . | . . . Power . | . . . Propulsion . | . . . Utility . | . . . Weapon . | . . . Parts Attached 23 | 7 12 4 Power 3 | 2 1 . Engine 2 | 2 . . Core 1 | . 1 . Reactor . | . . . Propulsion 7 | 2 4 1 Treads 2 | 2 . . Leg 5 | . 4 1 Wheel . | . . . Hover . | . . . Flight . | . . . Utility 6 | 1 4 1 Device 3 | . 2 1 Storage 3 | 1 2 . Processor . | . . . Hackware . | . . . Protection . | . . . Artifact . | . . . Weapon 7 | 2 3 2 Energy Gun . | . . . Energy Cannon . | . . . Ballistic Gun 5 | 2 2 1 Ballistic Cannon . | . . . Launcher 1 | . 1 . Special Weapon . | . . . Impact Weapon 1 | . . 1 Slashing Weapon . | . . . Piercing Weapon . | . . . Special Melee Weapon . | . . . Unidentified Prototypes 1 | . . 1 Parts Lost 9 | . 5 4 Power 3 | . 2 1 Propulsion 3 | . 2 1 Utility . | . . . Weapon 3 | . 1 2 Highest Loss Streak 4 | . 3 4 To Critical Strikes . | . . . Average Backups 7 | 1 7 9 Power . | . . . Propulsion 4 | 1 4 4 Utility 1 | . 1 2 Weapon 1 | . 1 2 Tool/Special . | . . . Unused Backups 6 | . . 6 Power . | . . . Propulsion 4 | . . 4 Utility 2 | . . 2 Weapon . | . . . Tool/Special . | . . . Average Slot Usage (%) 97 | . 97 99 Engine 6 | . 4 13 Core 6 | . 8 . Leg 27 | . 27 28 Device 1 | . 2 . Storage 25 | . 25 28 Ballistic Gun 26 | . 26 27 Peak Build Rating 16 | 6 10 16 Average Rating 8 | 4 8 7 On Entrance 4 | . 6 8 Naked Turns . | . . . Heaviest Build 22 | 13 22 20 Greatest Support 40 | 40 40 20 Greatest Overweight (x) 1 | . 1 . Average Overweight (x) . | . . . Largest Inventory Capacity 10 | 8 10 10 Average Capacity 9 | 7 9 10 Most Carried 10 | 3 10 10 Average Carried 8 | 1 7 9 Final Capacity 10 | 8 10 10 Final Carried 8 | 3 8 7 Class Distribution -------------------- 100% | Mutant Dominant Class ---------------- Mutant | -10/Materials Mutant | -10/Mines Resources | -11 -10 -10 ----------- Run | Yrd Mat Min Matter Collected 934 | 168 708 58 Remotely . | . . . Salvage Created 584 | . 526 58 Parts 53 | . 47 6 Haulers Intercepted 2 | . 2 . Recyclers Shooed 1 | . 1 . Parts Field Recycled . | . . . Retrieved Matter . | . . . Parts Self-Destructed . | . . . Prevented . | . . . Kills | -11 -10 -10 ------- Run | Yrd Mat Min Combat Hostiles Destroyed 14 | . 13 1 Guns 13 | . 12 1 AOE 1 | . 1 . Classes Destroyed 8 | . 7 1 Worker 2 | . 2 . Builder 1 | . 1 . Hauler 2 | . 2 . Operator 1 | . 1 . Watcher 1 | . 1 . Swarmer 5 | . 5 . Grunt 8 | . 8 . Sentry 1 | . . 1 Best Kill Streak 3 | . 3 1 Combat Bots Only 3 | . 3 1 Max Kills in Single Turn 2 | . 2 1 Gunslinging 1 | . 1 . Exploded 1 | . 1 . Melee . | . . . Uniques/NPCs Destroyed . | . . . Combat | -11 -10 -10 -------- Run | Yrd Mat Min Hostile Shots Fired 143 | . 103 40 Missed 29 | . 21 8 Hits 114 | . 82 32 Projectile 114 | . 82 32 Critical Strikes 1 | . . 1 Damage Taken 1315 | . 833 482 Core 256 | . 120 136 Absorbed by Shields . | . . . Core Remaining (%) 100 | 100 . . Volleys Fired 111 | . 95 16 Largest 2 | . 2 2 Hottest 50 | . 50 40 Shots Fired 195 | . 168 27 Gun 190 | . 163 27 Cannon . | . . . Launcher 5 | . 5 . Special . | . . . Kinetic 190 | . 163 27 Thermal . | . . . Explosive 5 | . 5 . Electromagnetic . | . . . Robot Hit Streak 13 | . 10 13 Robot Miss Streak 4 | . 4 2 Penetration Max . | . . . Secondary Targets 3 | . 2 1 Max Gunslinging Chain 1 | . 1 1 Shots Hit Robots 112 | . 89 23 Core Hits 44 | . 41 3 Critical Kills 1 | . 1 . Critical Parts Destroyed . | . . . Critical Strikes 1 | . 1 . Destroy 1 | . 1 . Melee Attacks . | . . . Impact . | . . . Slashing . | . . . Piercing . | . . . Sneak Attacks . | . . . Combat Hostiles . | . . . Follow-up Attacks . | . . . Damage Inflicted 1546 | . 1282 264 Guns 1377 | . 1113 264 Cannons . | . . . Explosions 157 | . 157 . Melee . | . . . Ramming 12 | . 12 . Kinetic 1377 | . 1113 264 Thermal . | . . . Explosive 157 | . 157 . Electromagnetic . | . . . Impact . | . . . Slashing . | . . . Piercing . | . . . Highest Corruption 3 | . 3 3 Average Corruption 2 | . 2 3 Corruption Purged . | . . . Corruption Blocked . | . . . Effects 31 | . 25 6 Message Errors 6 | . 5 1 Matter Fused 7 | . 5 2 Heat Flow Errors 6 | . 5 1 Energy Discharges 5 | . 5 . Parts Rejected 1 | . 1 . Data Loss (minor) 1 | . 1 . Data Loss (major) 2 | . . 2 Misfires 1 | . 1 . Weapon Failures 2 | . 2 . Overload Shots . | . . . Overflow Damage . | . . . Projectiles . | . . . Explosions . | . . . Melee . | . . . Knockbacks . | . . . Impact . | . . . Kinetic . | . . . Secondary . | . . . Self-Inflicted Damage 15 | . 15 . Shots 1 | . 1 . Rammed . | . . . Targets Rammed 6 | . 6 . Kicked 6 | . 6 . Crushed . | . . . Highest Temperature 275 | . 265 275 Average Temperature 73 | . 69 88 Received Heat Transfer 399 | . 264 135 Siege Activations . | . . . Martial Activations . | . . . Shielding Activations . | . . . Robots Disrupted . | . . . Combat Hostiles . | . . . Robots Corrupted . | . . . Combat Hostiles . | . . . Parts Fried . | . . . Impact Corruptions . | . . . Robots Melted . | . . . Combat Hostiles . | . . . Parts Melted . | . . . Heat Transferred . | . . . Parts Sabotaged . | . . . Parts Stolen . | . . . Parts Stripped . | . . . Power Chain Reactions . | . . . Alert | -11 -10 -10 ------- Run | Yrd Mat Min Maximum Alert Level . | . . . Low Security (%) 100 | 100 100 100 Level 1 . | . . . Level 2 . | . . . Level 3 . | . . . Level 4 . | . . . Level 5 . | . . . High Security . | . . . Max Security . | . . . Peak Influence 102 | . 102 33 Initial 33 | . . 33 Average 19 | . 23 3 Influence Increases 434 | . 406 28 Destroy 0b10 Robot/C 280 | . 260 20 Destroy 0b10 Robot/NC 35 | . 35 . Destroy Leader 66 | . 66 . Successful Hack 8 | . . 8 Disable Machine 30 | . 30 . Destroy Structure 15 | . 15 . Influence Decreases 434 | . 321 113 Entered New Map 52 | . . 52 Time Decay 312 | . 271 41 Lost Part 70 | . 50 20 Squads Dispatched 2 | . 2 . Investigation 1 | . 1 . Extermination . | . . . Reinforcement 1 | . 1 . Assault . | . . . Garrison . | . . . Intercept . | . . . Searches Triggered . | . . . Construction Impeded . | . . . Haulers Reinforced . | . . . Active Scanning Responses . | . . . Cargo Convoy Interrupts . | . . . Stealth | -11 -10 -10 --------- Run | Yrd Mat Min Distress Signals 2 | . 2 . Communications Jammed . | . . . Distress Signals . | . . . Times Spotted 42 | . 40 2 Peak Tracking Total 4 | . 4 2 Tactical Retreats . | . . . Traps | -11 -10 -10 ------- Run | Yrd Mat Min Traps Triggered 2 | . 2 . Indirectly . | . . . Trap Hack Attempts . | . . . Triggered . | . . . Disarmed . | . . . Reprogrammed . | . . . Reused . | . . . Traps Extracted . | . . . Installed . | . . . Triggered . | . . . Machines | -11 -10 -10 ---------- Run | Yrd Mat Min Machines Disabled 2 | . 2 . Max in Single Turn 1 | . 1 . Machines Repaired . | . . . Machines Dismantled . | . . . Machines Sabotaged . | . . . Overloaded Fab Kills . | . . . Hacking | -11 -10 -10 --------- Run | Yrd Mat Min Machines Accessed 4 | . 3 1 Terminals 3 | . 2 1 Fabricators . | . . . Repair Stations 1 | . 1 . Recycling Units . | . . . Scanalyzers . | . . . Garrison Access . | . . . Total Hacks 11 | . 8 3 Successful 3 | . 2 1 Failed 8 | . 6 2 Catastrophic 1 | . . 1 Database Lockouts . | . . . Manual 8 | . 5 3 Terminals 8 | . 5 3 Fabricators . | . . . Repair Stations 3 | . 3 . Recycling Units . | . . . Scanalyzers . | . . . Garrison Access . | . . . Terminal Hacks 1 | . . 1 Branch Access Points 1 | . . 1 Fabricator Hacks . | . . . Repair Station Hacks 1 | . 1 . Scan Component 1 | . 1 . Recycling Unit Hacks . | . . . Scanalyzer . | . . . Garrison Access Hacks . | . . . Unauthorized Hacks 1 | . 1 . Terminals 1 | . 1 . Botnet 1 | . 1 . Fabricators . | . . . Repair Stations . | . . . Recycling Units . | . . . Scanalyzers . | . . . Garrison Access . | . . . Data Cores Recovered . | . . . Used . | . . . Hacking Detections 4 | . 3 1 Full Trace Events 2 | . 2 . Feedback Events . | . . . Feedback Blocked . | . . . Robot Schematics Acquired . | . . . Robots Built . | . . . Authchips . | . . . Time . | . . . Total Robot Build Rating . | . . . Part Schematics Acquired . | . . . Parts Built . | . . . Authchips . | . . . Time . | . . . Total Part Build Rating . | . . . Parts Repaired . | . . . Time . | . . . Parts Recycled . | . . . Recycled Matter . | . . . Retrieved Matter . | . . . Retrieved Components . | . . . Parts Scanalyzed . | . . . Part Schematics Acquired . | . . . Parts Damaged . | . . . Bothacking | -11 -10 -10 ------------ Run | Yrd Mat Min Used RIF Installer . | . . . Robots Hacked . | . . . Non-combat . | . . . Combat . | . . . Robot Hacks Applied . | . . . Relay Couplers Released . | . . . Fabnet Peak Effective % . | . . . Robots Rewired . | . . . Allies Hacked . | . . . Hacks Repelled . | . . . Allies | -11 -10 -10 -------- Run | Yrd Mat Min Total Allies . | . . . Largest Group . | . . . Highest-Rated Group . | . . . Highest-Rated Ally . | . . . Total Orders . | . . . Ally Attacks . | . . . Total Damage . | . . . Kills . | . . . Allies Corrupted . | . . . Allies Melted . | . . . Intel | -11 -10 -10 ------- Run | Yrd Mat Min Active Infowar (turns) 348 | . 345 3 Sensors 3 | . . 3 Terrain 219 | . 219 . Structural 126 | . 126 . Robot Analysis Total . | . . . Derelict Logs Recovered 1 | . . 1 Drone Launches . | . . . Drone Recoveries . | . . . Exploration | -11 -10 -10 ------------- Run | Yrd Mat Min Turns Passed 2575 | 71 1998 506 Spaces Moved 1453 | 42 1038 373 Core 7 | 7 . . Treads 37 | 35 2 . Legs 1409 | . 1036 373 Wheels . | . . . Hover . | . . . Flight . | . . . Fastest Speed 50 | 50 120 120 Average Speed 148 | 141 159 120 Slowest Speed 190 | 160 190 120 Overloaded Moves . | . . . Propulsion Burnouts . | . . . Robots Hopped . | . . . Potential Cave-ins . | . . . Cave-ins Triggered . | . . . Exploration Rate (%) 53 | 5 87 69 Regions Visited 2 Branch Regions 1 Pre-discovered Areas 1 | . . 1 Known Exits Taken . | . . . Unknown Exits Taken 2 | 1 1 . Scrap Searched 1 | . . 1 Spaces Dug . | . . . Terrain Destroyed 14 | . 14 . Melee . | . . . Projectile . | . . . AOE 14 | . 14 . Terrain Rammed . | . . . Walls Destroyed . | . . . Machines Disabled . | . . . Actions | -11 -10 -10 --------- Run | Yrd Mat Min Total 1670 | 50 1213 407 Wait 45 | . 42 3 Move 1451 | 41 1037 373 Hop . | . . . Pick Up 14 | 2 9 3 Fast Attach 17 | 6 8 3 Attach 7 | . 4 3 Detach 2 | . 2 . Swap 6 | 1 4 1 Drop 11 | . 6 5 Fire 111 | . 95 16 Melee . | . . . Ram . | . . . Kick 6 | . 6 . Crush . | . . . Escape Stasis . | . . . Rewire . | . . . Trap . | . . . Miscellaneous . | . . . Route ------- -11/Scrapyard -10/Materials (discovered 5 exits: [*Mat x3] / *Min x2) -10/Mines (discovered 2 exits: [*Mat] / [*Sub]) History --------- Turn | Location | Event 20 | -11/Scrapyard | Discovered new exit (range 15) 72 | -11/Scrapyard | Entered Materials 170 | -10/Materials | Discovered new exit (range 11) 314 | -10/Materials | Build established: Mutant 456 | -10/Materials | Discovered new exit (range 3) 754 | -10/Materials | Discovered new exit (range 7) 1061 | -10/Materials | Discovered new exit (range 16) 1374 | -10/Materials | Discovered new exit (range 16) 1832 | -10/Materials | Lost 3 parts (1p1n1w) 2070 | -10/Materials | Entered Mines 2078 | -10/Mines | Met a Derelict bent on vengeance 2088 | -10/Mines | Found a Scrap Suit stashed away for nefarious purposes 2090 | -10/Mines | Found Scrap Suit 2130 | -10/Mines | Discovered new exit (range 11) 2262 | -10/Mines | Found a damaged Exp. Sensor Array with a note attached 2303 | -10/Mines | Found Prototype Device 2303 | -10/Mines | Identified Exp. Sensor Array 2343 | -10/Mines | Learned location of Mines (-9) 2374 | -10/Mines | Discovered new exit (range 5) 2529 | -10/Mines | Core integrity fell below 50% 2552 | -10/Mines | Core integrity fell below 20% 2576 | -10/Mines | Destroyed by Y-45 Defender with Heavy Assault Rifle Last Messages --------------- Identified Exp. Sensor Array. Dropped Exp. Sensor Array. Acquired Lrg. Matter Pod. System corrupted: Heat flow error (+293). System corrupted: Matter fused (-9). Acquired derelict log, extracted data. World map updated: -9/Mines. EXIT=FOUND Connecting with Terminal... Current location identified: Mines >>Access(Branch) No branch access points found. System corrupted: Substantial component data lost. K-01 Serf collects debris. Critical hit (Burn: +37). Y-45 Defender destroyed. Switching to secondary target: Y-45 Defender. Lgt. Ion Engine destroyed. Aluminum Leg destroyed. Assault Rifle destroyed. Map ----- +----------------------------------------------------+ | | | | | | | | | | | | | | | | | | | | | | | | | ?????????????????????????????????? | | ?????????????????????????????????? | | ?????????????????????????????????? | | ?????????????????????????????????? | | ?????????????????????????????????? | | ?????????????????????????????????? | | ?????????????????????????????????? | | ?????????????????????????????????? | | ?????????????????????????????????? | | ?????????????????????????????????? | | ?????????????????????????????????? | | ??????????????????????????#####??? | | ????????????????????????### ##?? | | ???????????????????##"??#@[ #?? | | ???????????????????#"" #%[ #?? | | ???????????????????#!! +=!Y ##?? | | ???????????????????#]! += #??? | | ???????????????????#"" # #??? | | ???????????????????##" ## #??? | | ????????????????????###?### #??? | | ?????????????????????????# #??? | | ????????????????????????## ##??? | | ???????????????????????## ##??? | | ???????????????????????# ##?? | | ????????????????"" ##### #?? | | ????????????????"" #?? | | ?????????????? ##### #?? | | ??????????????? ????### #?? | | ???????????????? ??????## #?? | | ????????????????# #???????## #?? | | ????????????????# #??####??# #?? | | ????????????????# #?## ##?# #?? | | ?????????????#### ### ### #?? | | ????????????? ## ## #?? | | ????????????????# #?? | | ??????????????### #?? | | ?????????????## #?? | | ?????????????# #?? | +----------------------------------------------------+ Best States ------------- Heat Dissipation 25 Energy Generation 14 Energy Capacity 250 Matter Stores 413 Matter Capacity 450 Sight Range 16 Terrain Scan Range 14 Terrain Scan Density 10 Evasion (%) 55 Recoil Reduction 2 Item Schematics ----------------- None Robot Schematics ------------------ None Fabricated ------------ Nothing Repaired ---------- Nothing Alien Tech Used ----------------- None Achievements -------------- None Challenges ------------ None Game ------ Seed LargeSigixCleaver Manual? 0 Play Time 00:23:39 Cumulative 19.5 hours Start 2025.07.27 @ 00:39:07 End 2025.07.27 @ 02:20:30 Sessions 1 Manual Loads 0 Difficulty Rogue Special Mode None Game No. 27 Rogue 27 Adventurer 0 Explorer 0 Win Type - Total 0 Types 0/0/0/0/0/0/0/0/0/0 Lore% 9 Gallery% 18 Achievement% 21 Wizard Run 0 Options --------- Layout 0 ASCII 0 Keyboard 0 Movement Mouse Keybinds 0 Fullscreen 2 Font 24/Smallcaps Map View 76x50 Zoom Use 0% Tactical HUD 0 Map Filters NONE Filters NONE Steam 1 RUN: 571c591b-ae09-4173-9afa-b11ece891233